Cogmind - Beta 13 @@@ ROGUE MODE // 2024.07.10 @ 21:30:30 Player: celerysam Result: Destroyed by G-47 Trooper with Particle Gun Performance ------------- Evolutions (1) 500 Regions Visited (5) 1000 Robots Destroyed (15) 75 Value Destroyed (358) 358 Prototype IDs (23) 460 Alien Tech Used (0) 0 Bonus (500) 500 TOTAL SCORE: 2893 Bonus ------- Pacifist 200 Aligned with FarCom 300 Cogmind --------- Core Integrity 0/400 Matter 274/300 Energy 125/125 System Corruption 0% Temperature Cool (9) Movement Walking (130) Location -8/Mines Parts ------- > --- POWER (1) -------- Light Ion Engine > --- PROPULSION (4) --- Titanium Leg > --- UTILITY (2) ------ Small Storage Unit > --- WEAPON (2) ------- Hammer > --- INVENTORY (8) ---- Improved Ion Engine Flight Unit Flight Unit Flight Unit Lightpack 2.0 Weight Redist. System Peak State ------------ > --- POWER ------------ Light Ion Engine > --- PROPULSION ------- Aluminum Leg Aluminum Leg Improved Aluminum Leg Titanium Leg > --- UTILITY ---------- Small Storage Unit Reactive Plating > --- WEAPON ----------- Shock Rifle Hammer > --- INVENTORY -------- Improved Ion Engine Flight Unit Flight Unit Flight Unit Lightpack 2.0 Weight Redist. System [Rating: 19] Favorites ----------- Power Light Ion Engine Engine Light Ion Engine Propulsion Aluminum Leg Leg Aluminum Leg Wheel Compact Wheel Flight Unit Flight Unit Utility Small Storage Unit Device Heat Sink Storage Small Storage Unit Protection Reactive Plating Weapon Hammer Energy Gun Small Laser Ballistic Gun Heavy Assault Rifle Launcher Grenade Launcher Impact Weapon Hammer Build | -11 -10 -9 -9 -9 -8 ------- Run | Yrd Mat Mat Min Exi Min Slots Evolved 2 | . . 2 . . . Power . | . . . . . . Propulsion 2 | . . 2 . . . Utility . | . . . . . . Weapon . | . . . . . . Parts Attached 36 | 5 3 15 9 2 2 Power 3 | 1 . 1 1 . . Engine 3 | 1 . 1 1 . . Core . | . . . . . . Reactor . | . . . . . . Propulsion 19 | 2 . 9 7 . 1 Treads . | . . . . . . Leg 12 | . . 7 4 . 1 Wheel 4 | 2 . 2 . . . Hover . | . . . . . . Flight 3 | . . . 3 . . Utility 3 | 1 1 1 . . . Device 1 | . 1 . . . . Storage 1 | 1 . . . . . Processor . | . . . . . . Hackware . | . . . . . . Protection 1 | . . 1 . . . Artifact . | . . . . . . Weapon 11 | 1 2 4 1 2 1 Energy Gun 3 | 1 1 . . . 1 Energy Cannon . | . . . . . . Ballistic Gun 4 | . 1 1 1 1 . Ballistic Cannon . | . . . . . . Launcher 2 | . . 2 . . . Special Weapon . | . . . . . . Impact Weapon 2 | . . 1 . 1 . Slashing Weapon . | . . . . . . Piercing Weapon . | . . . . . . Special Melee Weapon . | . . . . . . Unidentified Prototypes . | . . . . . . Parts Lost 14 | . . 9 . . 5 Power 1 | . . 1 . . . Propulsion 8 | . . 5 . . 3 Utility 2 | . . 1 . . 1 Weapon 3 | . . 2 . . 1 Highest Loss Streak 4 | . . 4 . . 3 To Critical Strikes . | . . . . . . Average Slot Usage (%) 86 | . 98 86 89 87 78 Engine 11 | . 14 10 11 11 11 Leg 26 | . . 23 30 33 29 Wheel 5 | . 28 10 . . . Device 2 | . 13 4 . . . Storage 11 | . 14 11 11 11 11 Protection 8 | . . 6 11 11 11 Energy Gun 3 | . 27 1 . . 1 Ballistic Gun 7 | . 1 6 11 11 3 Impact Weapon 9 | . . 9 11 10 11 Naked Turns . | . . . . . . Heaviest Build 25 | 11 14 25 25 23 23 Greatest Support 50 | 26 26 30 33 33 50 Greatest Overweight (x) 2 | . . 2 . . 1 Average Overweight (x) . | . . . . . . Largest Inventory Capacity 8 | 8 8 8 8 8 8 Average Capacity 7 | 7 8 8 8 8 8 Most Carried 8 | 7 8 8 8 8 8 Average Carried 7 | 4 7 7 6 7 8 Final Capacity 8 | 8 8 8 8 8 8 Final Carried 8 | 7 8 8 8 8 8 Class Distribution -------------------- 51% | Mutant 48% | Scavenger-Mutant Dominant Class ---------------- Mutant | -10/Materials Mutant | -9/Materials Scavenger-Mutant | -9/Mines Scavenger-Mutant | -9/Exiles Mutant | -8/Mines Resources | -11 -10 -9 -9 -9 -8 ----------- Run | Yrd Mat Mat Min Exi Min Matter Collected 585 | 238 . 229 79 . 39 Remotely . | . . . . . . Salvage Created 385 | . . 318 45 . 22 Parts 29 | . . 20 9 . . Haulers Intercepted . | . . . . . . Recyclers Shooed 2 | . . 2 . . . Parts Field Recycled . | . . . . . . Retrieved Matter . | . . . . . . Parts Self-Destructed . | . . . . . . Prevented . | . . . . . . Kills | -11 -10 -9 -9 -9 -8 ------- Run | Yrd Mat Mat Min Exi Min Combat Hostiles Destroyed 14 | . . 10 3 . 1 Melee 1 | . . 1 . . . Guns 6 | . . 3 3 . . AOE 4 | . . 4 . . . Classes Destroyed 4 | . . 3 . . 1 Tunneler 1 | . . . . . 1 Swarmer 7 | . . 3 3 . 1 Grunt 4 | . . 4 . . . Sentry 3 | . . 3 . . . Best Kill Streak 5 | . . 5 3 . 1 Combat Bots Only 5 | . . 5 3 . 1 Max Kills in Single Turn 2 | . . 2 1 . 1 Gunslinging . | . . . . . . Exploded 2 | . . 2 . . . Melee 1 | . . 1 . . . Uniques/NPCs Destroyed . | . . . . . . Combat | -11 -10 -9 -9 -9 -8 -------- Run | Yrd Mat Mat Min Exi Min Hostile Shots Fired 219 | . . 135 36 . 48 Missed 62 | . . 40 8 . 14 Damage Taken 1873 | . . 1201 161 . 511 Core 406 | . . 239 5 . 162 Absorbed by Shields . | . . . . . . Ignored by Resistances 140 | . . 76 56 . 8 Core Remaining (%) 100 | 100 100 . . . . Volleys Fired 29 | . . 13 13 . 3 Largest 1 | . . 1 1 . 1 Hottest 50 | . . 30 23 . 50 Shots Fired 29 | . . 13 13 . 3 Gun 25 | . . 9 13 . 3 Cannon . | . . . . . . Launcher 4 | . . 4 . . . Special . | . . . . . . Kinetic 22 | . . 9 13 . . Thermal . | . . . . . . Explosive 4 | . . 4 . . . Electromagnetic 3 | . . . . . 3 Robot Hit Streak 10 | . . 3 7 . 10 Robot Miss Streak 3 | . . 2 3 . . Penetration Max . | . . . . . . Secondary Targets . | . . . . . . Shots Hit Robots 34 | . . 19 8 . 7 Core Hits 18 | . . 12 4 . 2 Critical Kills 1 | . . 1 . . . Critical Parts Destroyed 2 | . . 1 . . 1 Critical Strikes 3 | . . 2 . . 1 Smash 3 | . . 2 . . 1 Melee Attacks 22 | . . 15 . 1 6 Impact 22 | . . 15 . 1 6 Slashing . | . . . . . . Piercing . | . . . . . . Sneak Attacks 1 | . . . . . 1 Combat Hostiles . | . . . . . . Follow-up Attacks . | . . . . . . Damage Inflicted 807 | . . 518 107 . 182 Guns 258 | . . 95 107 . 56 Cannons . | . . . . . . Explosions 196 | . . 196 . . . Melee 353 | . . 227 . . 126 Ramming . | . . . . . . Kinetic 202 | . . 95 107 . . Thermal . | . . . . . . Explosive 196 | . . 196 . . . Electromagnetic 56 | . . . . . 56 Impact 353 | . . 227 . . 126 Slashing . | . . . . . . Piercing . | . . . . . . Highest Corruption . | . . . . . . Average Corruption . | . . . . . . Corruption Purged . | . . . . . . Corruption Blocked . | . . . . . . Overload Shots . | . . . . . . Overflow Damage 84 | . . 36 . . 48 Projectiles . | . . . . . . Explosions . | . . . . . . Melee 84 | . . 36 . . 48 Knockbacks 1 | . . . . . 1 Impact 1 | . . . . . 1 Kinetic . | . . . . . . Secondary . | . . . . . . Self-Inflicted Damage 28 | . . 28 . . . Shots 1 | . . 1 . . . Rammed . | . . . . . . Targets Rammed . | . . . . . . Kicked . | . . . . . . Crushed . | . . . . . . Highest Temperature 154 | . . 2 . . 154 Average Temperature 83 | . . 1 . . 91 Received Heat Transfer 723 | . . 417 . . 306 Siege Activations . | . . . . . . Robots Corrupted . | . . . . . . Combat Hostiles . | . . . . . . Parts Fried 3 | . . . . . 3 Impact Corruptions 5 | . . 2 . . 3 Robots Melted . | . . . . . . Combat Hostiles . | . . . . . . Parts Melted . | . . . . . . Heat Transferred . | . . . . . . Parts Sabotaged . | . . . . . . Parts Stolen . | . . . . . . Parts Stripped . | . . . . . . Power Chain Reactions . | . . . . . . Alert | -11 -10 -9 -9 -9 -8 ------- Run | Yrd Mat Mat Min Exi Min Peak Influence 282 | . 44 282 101 . 115 Initial 31 | . . 18 31 . . Average 61 | . 21 104 77 . 26 Maximum Alert Level 1 | . . 1 . . . Low Security (%) 92 | 100 100 82 100 . 100 Level 1 7 | . . 17 . . . Level 2 . | . . . . . . Level 3 . | . . . . . . Level 4 . | . . . . . . Level 5 . | . . . . . . High Security . | . . . . . . Max Security . | . . . . . . Squads Dispatched 1 | . . 1 . . . Investigation . | . . . . . . Extermination . | . . . . . . Reinforcement 1 | . . 1 . . . Assault . | . . . . . . Garrison . | . . . . . . Intercept . | . . . . . . Searches Triggered . | . . . . . . Construction Impeded . | . . . . . . Haulers Reinforced . | . . . . . . Active Scanning Responses . | . . . . . . Cargo Convoy Interrupts . | . . . . . . Stealth | -11 -10 -9 -9 -9 -8 --------- Run | Yrd Mat Mat Min Exi Min Distress Signals 2 | . . 2 . . . Communications Jammed . | . . . . . . Distress Signals . | . . . . . . Times Spotted 30 | . 2 15 3 . 10 Peak Tracking Total 5 | . 1 5 3 . 5 Tactical Retreats 3 | . . . . . 3 Traps | -11 -10 -9 -9 -9 -8 ------- Run | Yrd Mat Mat Min Exi Min Traps Triggered 1 | . . 1 . . . Indirectly . | . . . . . . Trap Hack Attempts . | . . . . . . Triggered . | . . . . . . Disarmed . | . . . . . . Reprogrammed . | . . . . . . Reused . | . . . . . . Traps Extracted . | . . . . . . Installed . | . . . . . . Triggered . | . . . . . . Machines | -11 -10 -9 -9 -9 -8 ---------- Run | Yrd Mat Mat Min Exi Min Machines Disabled 2 | . . 1 . 1 . Max in Single Turn 1 | . . 1 . 1 . Machines Repaired . | . . . . . . Machines Dismantled . | . . . . . . Machines Sabotaged . | . . . . . . Overloaded Fab Kills . | . . . . . . Hacking | -11 -10 -9 -9 -9 -8 --------- Run | Yrd Mat Mat Min Exi Min Machines Accessed 7 | . 1 2 . 4 . Terminals 3 | . 1 2 . . . Fabricators . | . . . . . . Repair Stations . | . . . . . . Recycling Units . | . . . . . . Scanalyzers . | . . . . . . Garrison Access . | . . . . . . Total Hacks 34 | . 2 6 . 26 . Successful 32 | . 2 4 . 26 . Failed 2 | . . 2 . . . Catastrophic 1 | . . 1 . . . Database Lockouts . | . . . . . . Manual 1 | . . . . 1 . Terminals 8 | . 2 6 . . . Fabricators . | . . . . . . Repair Stations . | . . . . . . Recycling Units . | . . . . . . Scanalyzers . | . . . . . . Garrison Access . | . . . . . . Terminal Hacks 32 | . 2 4 . 26 . Record 28 | . . 3 . 25 . Registered Prototypes 1 | . 1 . . . . Zone Layout 2 | . 1 1 . . . Derelict Proto ID Bank 1 | . . . . 1 . Fabricator Hacks . | . . . . . . Repair Station Hacks . | . . . . . . Recycling Unit Hacks . | . . . . . . Scanalyzer . | . . . . . . Garrison Access Hacks . | . . . . . . Unauthorized Hacks . | . . . . . . Terminals . | . . . . . . Fabricators . | . . . . . . Repair Stations . | . . . . . . Recycling Units . | . . . . . . Scanalyzers . | . . . . . . Garrison Access . | . . . . . . Data Cores Recovered . | . . . . . . Used . | . . . . . . Hacking Detections 2 | . 1 1 . . . Full Trace Events . | . . . . . . Feedback Events . | . . . . . . Feedback Blocked . | . . . . . . Robot Schematics Acquired . | . . . . . . Robots Built . | . . . . . . Authchips . | . . . . . . Time . | . . . . . . Total Robot Build Rating . | . . . . . . Part Schematics Acquired . | . . . . . . Parts Built . | . . . . . . Authchips . | . . . . . . Time . | . . . . . . Total Part Build Rating . | . . . . . . Parts Repaired . | . . . . . . Time . | . . . . . . Parts Recycled . | . . . . . . Recycled Matter . | . . . . . . Retrieved Matter . | . . . . . . Retrieved Components . | . . . . . . Parts Scanalyzed . | . . . . . . Part Schematics Acquired . | . . . . . . Parts Damaged . | . . . . . . Bothacking | -11 -10 -9 -9 -9 -8 ------------ Run | Yrd Mat Mat Min Exi Min Used RIF Installer . | . . . . . . Robots Hacked . | . . . . . . Non-combat . | . . . . . . Combat . | . . . . . . Robot Hacks Applied . | . . . . . . Relay Couplers Released . | . . . . . . Fabnet Peak Effective % . | . . . . . . Robots Rewired . | . . . . . . Allies Hacked . | . . . . . . Hacks Repelled . | . . . . . . Allies | -11 -10 -9 -9 -9 -8 -------- Run | Yrd Mat Mat Min Exi Min Total Allies . | . . . . . . Largest Group . | . . . . . . Highest-Rated Group . | . . . . . . Highest-Rated Ally . | . . . . . . Total Orders . | . . . . . . Ally Attacks . | . . . . . . Total Damage . | . . . . . . Kills . | . . . . . . Allies Corrupted . | . . . . . . Allies Melted . | . . . . . . Intel | -11 -10 -9 -9 -9 -8 ------- Run | Yrd Mat Mat Min Exi Min Robot Analysis Total . | . . . . . . Derelict Logs Recovered 1 | . . . 1 . . Drone Launches . | . . . . . . Drone Recoveries . | . . . . . . Exploration | -11 -10 -9 -9 -9 -8 ------------- Run | Yrd Mat Mat Min Exi Min Turns Passed 1571 | 61 142 419 104 562 283 Spaces Moved 1170 | 51 147 252 51 461 208 Core 4 | 4 . . . . . Treads . | . . . . . . Legs 845 | . . 125 51 461 208 Wheels 321 | 47 147 127 . . . Hover . | . . . . . . Flight . | . . . . . . Fastest Speed 50 | 50 90 90 120 120 120 Average Speed 117 | 86 90 127 120 120 123 Slowest Speed 260 | 90 90 260 120 120 200 Overloaded Moves . | . . . . . . Propulsion Burnouts . | . . . . . . Robots Hopped . | . . . . . . Cave-ins Triggered . | . . . . . . Exploration Rate (%) 38 | 3 24 27 25 89 60 Regions Visited 5 Branch Regions 3 Pre-discovered Areas 1 | . . . . 1 . Known Exits Taken . | . . . . . . Unknown Exits Taken 5 | 1 1 1 1 1 . Scrap Searched 3 | . . . 2 . 1 Spaces Dug . | . . . . . . Terrain Destroyed 24 | . . 24 . . . Melee . | . . . . . . Projectile . | . . . . . . AOE 24 | . . 24 . . . Terrain Rammed . | . . . . . . Walls Destroyed . | . . . . . . Machines Disabled . | . . . . . . Actions | -11 -10 -9 -9 -9 -8 --------- Run | Yrd Mat Mat Min Exi Min Total 1301 | 67 157 308 80 469 220 Wait 5 | . . 5 . . . Move 1165 | 50 146 251 50 460 208 Hop . | . . . . . . Pick Up 28 | 12 5 6 4 1 . Fast Attach 11 | . 1 5 1 2 2 Attach 15 | 5 2 5 3 . . Detach 1 | . . . 1 . . Swap 10 | . . 5 5 . . Drop 15 | . 3 3 3 5 1 Fire 29 | . . 13 13 . 3 Melee 22 | . . 15 . 1 6 Ram . | . . . . . . Kick . | . . . . . . Crush . | . . . . . . Escape Stasis . | . . . . . . Rewire . | . . . . . . Trap . | . . . . . . Miscellaneous . | . . . . . . Route ------- -11/Scrapyard -10/Materials -9/Materials -9/Mines -9/Exiles -8/Mines History --------- Turn | Location | Event 26 | -11/Scrapyard | Discovered new exit (range 16) 62 | -11/Scrapyard | Entered Materials 179 | -10/Materials | Discovered new exit (range 11) 204 | -10/Materials | Entered another Materials area 204 | -9/Materials | Evolved 2 slots: Propulsion x2 310 | -9/Materials | Build established: Mutant 449 | -9/Materials | Lost 4 parts (2n1u1w) 542 | -9/Materials | Core integrity fell below 50% 594 | -9/Materials | Discovered new exit (range 12) 623 | -9/Materials | Entered Mines 629 | -9/Mines | Lost 3 parts (2n1w) 722 | -9/Mines | Deemed a non-threat by the Exiles lab entrance 722 | -9/Mines | Discovered new exit (range 5) 727 | -9/Mines | Entered Exiles 783 | -9/Exiles | Met 8R-AWN 806 | -9/Exiles | Met EX-HEX 838 | -9/Exiles | Met EX-BIN 853 | -9/Exiles | Aligned with FarCom system 854 | -9/Exiles | Given EX-Vault access code 881 | -9/Exiles | Opened EX-Vault 934 | -9/Exiles | Build established: Scavenger-Mutant 942 | -9/Exiles | Found Lightpack 2.0 979 | -9/Exiles | Warned to stay clear of 0b10 Research branches 1018 | -9/Exiles | Met EX-DEC 1026 | -9/Exiles | Learned location of Zion (-7) 1077 | -9/Exiles | Visited The Gauntlet 1273 | -9/Exiles | Discovered new exit (range 14) 1289 | -9/Exiles | Left Exiles lab with Lightpack 2.0 1289 | -9/Exiles | Entered Mines 1423 | -8/Mines | Core integrity fell below 20% 1453 | -8/Mines | Lost 3 parts (2n1w) 1572 | -8/Mines | Destroyed by G-47 Trooper with Particle Gun Last Messages --------------- 01428_ K-01 Serf collects debris. 01463_ Sneak attack on T-07 Excavator. 01463_ Destroyed Wheel. 01463_ Destroyed Imp. Terrain Scanner. 01463_ T-07 Excavator system corrupted by crushing effect. 01463_ T-07 Excavator knocked back. 01464_ T-07 Excavator system terminally corrupted. 01464_ Lgt. Ion Engine fried. 01464_ Wheel fried. 01468_ Acquired 10 matter. 01541_ S-10 Pest suffers critical hit (Smash). 01541_ Destroyed Lgt. Ion Engine. 01541_ S-10 Pest system corrupted by crushing effect. 01541_ S-10 Pest misfires. 01542_ S-10 Pest system terminally corrupted. 01542_ Flight Unit fried. 01543_ Acquired 12 matter. 01547_ K-01 Serf collects debris. 01561_ Imp. Aluminum Leg destroyed. 01570_ Reactive Plating destroyed. Map ----- +----------------------------------------------------+ | ?????????????????????????????????????????????????? | | ?????????????????????????????????????????????????? | | ?????????????????????????????????????????????????? | | ?????????????????????????????????????????????????? | | ?????????????????????????????????????????????????? | | ?????????????????????????????????????????????????? | | ?????????????????????????????????????????????????? | | ?????????????????????????????????####????????????? | | ???????????????????????????????### ##???????????? | | ??????????????????????????????## ##??????????? | | ??????????????????????????????# ##????####?? | | ??????????????????????????????# ###### ### | | ??????????????????????????????# # | | ?????????????????????????????## ## | | ???????????????????????????### ####### | | ??????????????????????????## ##?????## # | | ??????????????????????????# ##???????#### ## | | ??????????????????????????# ##??????????### ## | | ??????????????????????????# ####?????????# | | ??????????????????????????# ##???????## ## | | ??????????????????????????## ##?????## ## | | ???????# ?????#####??????# #????## # | | ???????# ### ##????# #???## # | | ????????# ####### #???# # | | ??????????# r ## #???# # | | ???????????# @g ##### #???# | | ????????????# ## ####s #?### ##??# | | ???????????????????## #??# ### #??## | | ????????????????????# #??# #???## | | ????????????????????# #??# ### ##????## # | | ????????????????????# #??# #?### ##??????# ### | | ????????????????????# #### #???#####???????# #?? | | ??####??????????????# s?s #???????????##### #?? | | ?## ##?????????????###?## ###?????????# #?? | | ## ##?????????????????# #####?????# ######?? | | # ! ! ########?????????## ##????# #??????? | | # [ #?????????# ##???# #??????? | | ?#! ] #?????????# ##??# #??????? | | ?# ]####### ########### ### #??# #??????? | | ?# ##?????# ##?## ##?# #??????? | | ?# #??????# ##???## #?# #??????? | | ?# #??????#################?????## ### #####??? | | ?# #????????????????????????????## #??? | | ## ##?????????????????????##????# ######## #??? | | # ###########??????????## ??## ##??????# #??? | | # #???######## ## ##???????# #??? | | ## #?? ##???????# #??? | | ?## #### ### #??????## #???????# #??? | | ??## ##??# #???????### ##???#### #??? | | ???## #???# #####?????????## ##### ##?? | +----------------------------------------------------+ Best States ------------- Heat Dissipation 38 Energy Generation 10 Energy Capacity 250 Matter Stores 300 Matter Capacity 300 Sight Range 16 Terrain Scan Density 10 Armor Coverage 150 Resistance: KI 20 Evasion (%) 55 Item Schematics ----------------- None Robot Schematics ------------------ None Fabricated ------------ Nothing Alien Tech Used ----------------- None Achievements -------------- None Challenges ------------ None Game ------ Seed WeaponsGammaAnalyzer Manual? 0 Play Time 00:20:52 Cumulative 91.3 hours Start 2024.07.10 @ 21:09:23 End 2024.07.10 @ 21:30:30 Sessions 1 Manual Loads 0 Difficulty Rogue Special Mode None Game No. 132 Rogue 132 Adventurer 0 Explorer 0 Win Type - Total 0 Types 0/0/0/0/0/0/0/0/0 Lore% 39 Gallery% 54 Achievement% 34 Wizard Run 0 Options --------- Layout 0 ASCII 0 Keyboard 0 Movement Mouse Keybinds 0 Fullscreen 1 Font 24/Smallcaps Map View 76x50 Zoom Use 0% Tactical HUD 1 Map Filters NONE Filters NONE Steam 1 RUN: 20e2d67c-02cc-4244-8691-80009d562d9c